fUSD/lending_fUSD_20250110
["ID","MTS","AMOUNT","RATE_DAILY","PERIOD"]
[348380412,1736485847167,-500.0,0.00010546,2]
[348380413,1736485847177,-500.0,0.00010546,2]
[348380414,1736485847187,-500.0,0.00010546,2]
[348380415,1736485847197,-519.05,0.00010546,2]
[348380416,1736485847207,-500.0,0.00010546,2]
[348380417,1736485847217,-588.49568315,0.00010546,2]
[348380418,1736485847227,-500.0,0.00010546,2]
[348380419,1736485847237,-500.0,0.00010546,2]
[348380420,1736485847247,-500.0,0.00010546,2]
[348380421,1736485847256,-500.0,0.00010546,2]
[348380422,1736485847266,-500.0,0.00010546,2]
[348380423,1736485847276,-500.0,0.00010546,2]
[348380424,1736485847286,-500.0,0.00010546,2]
[348380425,1736485847295,-500.0,0.00010546,2]
[348380426,1736485847306,-500.0,0.00010546,2]
[348380427,1736485847316,-500.0,0.00010546,2]
[348380428,1736485847326,-500.0,0.00010546,2]
[348380429,1736485847335,-500.0,0.00010546,2]
[348380430,1736485847347,-500.0,0.00010546,2]
[348380431,1736485847357,-512.49,0.00010546,2]
[348380432,1736485847368,-548.71,0.00010546,2]
[348380433,1736485847378,-517.44,0.00010546,2]
[348380434,1736485847389,-638.71,0.00010546,2]
[348380435,1736485847400,-747.11,0.00010546,2]
[348380436,1736485847411,-500.0,0.00010546,2]
[348380437,1736485847421,-500.0,0.00010546,2]
[348380438,1736485847432,-500.0,0.00010546,2]
[348380439,1736485847442,-500.0,0.00010546,2]
[348380440,1736485847452,-500.0,0.00010546,2]
[348380441,1736485847462,-500.0,0.00010546,2]
[348380442,1736485847471,-776.6,0.00010546,2]
[348380443,1736485847481,-620.59,0.00010546,2]
[348380444,1736485847491,-796.51,0.00010546,2]
[348380445,1736485847500,-802.9,0.00010546,2]
[348380446,1736485847510,-500.0,0.00010546,2]
[348380447,1736485847520,-500.0,0.00010546,2]
[348380448,1736485847530,-546.03,0.00010546,2]
[348380449,1736485847539,-500.0,0.00010546,2]
[348380450,1736485847549,-591.26,0.00010546,2]
[348380451,1736485847559,-500.0,0.00010546,2]
[348380452,1736485847568,-500.0,0.00010546,2]
[348380453,1736485847578,-500.0,0.00010546,2]
[348380454,1736485847588,-500.0,0.00010546,2]
[348380455,1736485847598,-737.07,0.00010546,2]
[348380456,1736485847607,-500.0,0.00010546,2]
[348380457,1736485847617,-500.0,0.00010546,2]
[348380458,1736485847626,-592.26,0.00010546,2]
[348380459,1736485847635,-730.39,0.00010546,2]
[348380460,1736485847645,-500.0,0.00010546,2]
[348380461,1736485847655,-878.76,0.00010546,2]
[348380462,1736485847665,-625.64,0.00010546,2]
[348380463,1736485847674,-542.31,0.00010546,2]
[348380464,1736485847683,-825.5,0.00010546,2]
[348380465,1736485847693,-500.0,0.00010546,2]
[348380466,1736485847703,-500.0,0.00010546,2]
[348380467,1736485847712,-500.0,0.00010546,2]
[348380468,1736485847722,-1008.98,0.00010546,2]
[348380469,1736485847732,-649.97,0.00010546,2]
[348380470,1736485847741,-965.32,0.00010546,2]
[348380471,1736485847751,-500.0,0.00010546,2]
[348380472,1736485847760,-1051.3,0.00010546,2]
[348380473,1736485847770,-500.0,0.00010546,2]
[348380474,1736485847780,-638.06,0.00010546,2]
[348380475,1736485847790,-856.2,0.00010546,2]
[348380476,1736485847800,-2492.72,0.00010547,2]
[348380477,1736485847810,-1117.6,0.00010547,2]
[348380478,1736485847820,-2716.02,0.00010547,2]
[348380479,1736485847829,-1051.97,0.00010547,2]
[348380480,1736485847838,-942.9,0.00010547,2]
[348380481,1736485847847,-1386.35,0.00010547,2]
[348380482,1736485847856,-1345.32,0.00010547,2]
[348380483,1736485847867,-2039.72,0.00010547,2]
[348380484,1736485847877,-1211.66,0.00010547,2]
[348380485,1736485847887,-500.0,0.00010547,2]
[348380486,1736485847897,-4020.8,0.00010547,2]
[348380487,1736485847907,-500.0,0.00010547,2]
[348380488,1736485847917,-1742.2,0.00010547,2]
[348380489,1736485847927,-2381.68,0.00010547,2]
[348380490,1736485847937,-1409.32,0.00010547,2]
[348380491,1736485847947,-1787.14,0.00010547,2]
[348380492,1736485848034,-973.16,0.00010547,2]
[348380493,1736485848045,-1029.35,0.00010547,2]
[348380494,1736485848055,-1504.91,0.00010547,2]
[348380495,1736485848066,-2601.63,0.00010547,2]
[348380496,1736485848076,-1352.02,0.00010547,2]
[348380497,1736485848085,-2290.17,0.00010547,2]
[348380498,1736485848095,-962.88,0.00010547,2]
[348380499,1736485848106,-6045.19,0.00010547,2]
[348380500,1736485848115,-836.69,0.00010547,2]
[348380501,1736485848125,-1073.22,0.00010547,2]
[348380502,1736485848135,-1240.83,0.00010547,2]
[348380503,1736485848145,-739.05,0.00010547,2]
[348380504,1736485848155,-500.0,0.00010547,2]
[348380505,1736485848164,-596.81,0.00010547,2]
[348380506,1736485848174,-830.3,0.00010547,2]
[348380507,1736485848184,-823.66,0.00010547,2]
[348380508,1736485848194,-1261.47,0.00010547,2]
[348380509,1736485848204,-2015.0,0.00010551,2]
[348380510,1736485848214,-1267.0,0.00010551,2]
[348380511,1736485848224,-150.0,0.00010551,2]
[348380512,1736485848235,-566.0,0.00010551,2]
[348380513,1736485848244,-635.0,0.00010551,2]
[348380514,1736485848254,-1861.0,0.00010551,2]
[348380515,1736485848264,-915.0,0.00010551,2]
[348380516,1736485848275,-1259.0,0.00010551,2]
[348380517,1736485848285,-2944.0,0.00010551,2]
[348380518,1736485848294,-820.0,0.00010551,2]
[348380519,1736485848304,-537.0,0.00010551,2]
[348380520,1736485848314,-3977.0,0.00010551,2]
[348380521,1736485848324,-1173.0,0.00010551,2]
[348380522,1736485848334,-3896.0,0.00010551,2]
[348380523,1736485848349,-150.0,0.00010551,2]
[348380524,1736485848361,-9624.0,0.00010551,2]
[348380525,1736485848371,-167.19,0.00010635,2]
[348380526,1736485848381,-96540.95451701,0.00010638,2]
[348380527,1736485848390,-150.0,0.00010659,2]
[348380528,1736485848400,-915.35999256,0.00010721,2]
[348380529,1736485848409,-160.78282822,0.00010721,2]
[348380530,1736485848419,-150.0,0.0001075,2]
[348380531,1736485848429,-150.0,0.00010765,2]
[348380532,1736485848439,-152.48,0.00010772,2]
[348380533,1736485848448,-150.0,0.00010799,2]
[348380534,1736485848458,-500.0,0.00010818,2]
[348380535,1736485848467,-830.78,0.00010818,2]
[348380536,1736485848476,-986.39,0.00010818,2]
[348380537,1736485848486,-1171.11,0.00010818,2]
[348380538,1736485848495,-789.43,0.00010818,2]
[348380539,1736485848504,-928.95,0.00010818,2]
[348380540,1736485848514,-935.11,0.00010818,2]
[348380541,1736485848523,-1179.99,0.00010818,2]
[348380542,1736485848533,-1222.87,0.00010818,2]
[348380543,1736485848542,-500.0,0.00010818,2]
[348380544,1736485848552,-1043.32,0.00010818,2]
[348380545,1736485848561,-1000.0,0.00010818,2]
[348380546,1736485848571,-2469.85,0.00010818,2]
[348380547,1736485848580,-1184.09,0.00010818,2]
[348380548,1736485848590,-984.96,0.00010818,2]
[348380549,1736485848599,-774.76,0.00010818,2]
[348380550,1736485848608,-987.59,0.00010818,2]
[348380551,1736485848618,-1658.41,0.00010818,2]
[348380552,1736485848627,-2058.34,0.00010818,2]
[348380553,1736485848637,-1289.09,0.00010818,2]
[348380554,1736485848646,-500.0,0.00010818,2]
[348380555,1736485848655,-500.0,0.00010818,2]
[348380556,1736485848665,-768.63,0.00010818,2]
[348380557,1736485848675,-500.0,0.00010818,2]
[348380558,1736485848684,-1495.58,0.00010818,2]
[348380559,1736485848693,-500.0,0.00010818,2]
[348380560,1736485848703,-2242.54,0.00010818,2]
[348380561,1736485848712,-2213.99,0.00010818,2]
[348380562,1736485848721,-709.35,0.00010818,2]
[348380563,1736485848731,-782.19,0.00010818,2]
[348380564,1736485848740,-2285.23,0.00010818,2]
[348380565,1736485848750,-500.0,0.00010819,2]
[348380566,1736485848759,-500.0,0.00010819,2]
[348380567,1736485848769,-1123.38,0.00010819,2]
[348380568,1736485848779,-500.0,0.00010819,2]
[348380569,1736485848789,-500.0,0.00010819,2]
[348380570,1736485848798,-627.85,0.00010819,2]
[348380571,1736485848808,-500.0,0.00010819,2]
[348380572,1736485848817,-500.0,0.00010819,2]
[348380573,1736485848827,-500.0,0.00010819,2]
[348380574,1736485848837,-500.0,0.00010819,2]
[348380575,1736485848847,-887.68,0.00010819,2]
[348380576,1736485848856,-500.0,0.00010819,2]
[348380577,1736485848866,-639.22,0.00010819,2]
[348380578,1736485848875,-769.91,0.00010819,2]
[348380579,1736485848885,-500.0,0.00010819,2]
[348380580,1736485848894,-500.0,0.00010819,2]
[348380581,1736485848904,-742.36,0.00010819,2]
[348380582,1736485848914,-154.93293099,0.00010819,2]
[348380583,1736485848924,-500.0,0.00010819,2]
[348380584,1736485848934,-500.0,0.00010819,2]
[348380585,1736485848944,-500.0,0.00010819,2]
[348380586,1736485848954,-582.68,0.00010819,2]
[348380587,1736485848965,-500.0,0.00010819,2]
[348380588,1736485848975,-784.36,0.00010819,2]
[348380589,1736485848985,-500.0,0.00010819,2]
[348380590,1736485848994,-774.75,0.00010819,2]
[348380591,1736485849005,-500.0,0.00010819,2]
[348380592,1736485849015,-500.0,0.00010819,2]
[348380593,1736485849026,-500.0,0.00010819,2]
[348380594,1736485849037,-500.0,0.00010819,2]
[348380595,1736485849048,-500.0,0.00010819,2]
[348380596,1736485849059,-500.0,0.00010819,2]
[348380597,1736485849070,-500.0,0.00010819,2]
[348380598,1736485849080,-745.91,0.00010819,2]
[348380599,1736485849090,-500.0,0.00010819,2]
[348380600,1736485849101,-529.14,0.00010819,2]
[348380601,1736485849111,-544.93,0.00010819,2]
[348380602,1736485849121,-500.0,0.00010819,2]
[348380603,1736485849131,-743.07,0.00010819,2]
[348380604,1736485849141,-500.0,0.00010819,2]
[348380605,1736485849151,-590.92708268,0.00010819,2]
[348380606,1736485849161,-500.0,0.00010819,2]
[348380607,1736485849171,-758.33,0.00010819,2]
[348380608,1736485849182,-500.0,0.00010819,2]
[348380609,1736485849192,-500.0,0.00010819,2]
[348380610,1736485849202,-631.41,0.00010819,2]
[348380611,1736485849213,-806.17,0.00010819,2]
[348380612,1736485849223,-751.42,0.00010819,2]
[348380613,1736485849234,-500.0,0.00010819,2]
[348380614,1736485849244,-500.0,0.00010819,2]
[348380615,1736485849255,-809.57,0.00010819,2]
[348380616,1736485849266,-764.18,0.00010819,2]
[348380617,1736485849278,-882.65,0.00010819,2]
[348380618,1736485849289,-541.73,0.00010819,2]
[348380619,1736485849301,-459.88892614,0.00010819,2]
[348380620,1736485849312,-665.92,0.00010819,2]
[348380621,1736485849322,-500.0,0.00010819,2]
[348380622,1736485849333,-500.0,0.00010819,2]
[348380623,1736485849346,-500.0,0.00010819,2]
[348380624,1736485849359,-751.87,0.00010819,2]
[348380625,1736485849370,-782.38,0.00010819,2]
[348380626,1736485849381,-589.61,0.00010819,2]
[348380627,1736485849391,-540.49,0.00010819,2]
[348380628,1736485849401,-571.58,0.00010819,2]
[348380629,1736485849413,-713.83,0.00010819,2]
[348380630,1736485849423,-665.21,0.00010819,2]
[348380631,1736485849433,-734.51,0.00010819,2]
[348380632,1736485849445,-500.0,0.00010819,2]
[348380633,1736485849456,-500.0,0.00010819,2]
[348380634,1736485849466,-500.0,0.00010819,2]
[348380635,1736485849476,-535.18,0.00010819,2]
[348380636,1736485849486,-781.63,0.00010819,2]
[348380637,1736485849496,-629.89,0.00010819,2]
[348380638,1736485849507,-1563.89,0.00010819,2]
[348380639,1736485849521,-500.0,0.00010819,2]
[348380640,1736485849532,-706.08,0.00010819,2]
[348380641,1736485849542,-1621.74,0.00010819,2]
[348380642,1736485849553,-600.7,0.00010819,2]
[348380643,1736485849564,-571.16,0.00010819,2]
[348380644,1736485849575,-1061.94,0.00010819,2]
[348380645,1736485849585,-2953.75,0.00010819,2]
[348380646,1736485849595,-500.0,0.00010819,2]
[348380647,1736485849607,-1036.81,0.00010819,2]
[348380648,1736485849617,-500.0,0.00010819,2]
[348380649,1736485849629,-711.64,0.00010819,2]
[348380650,1736485849639,-726.71,0.00010819,2]
[348380651,1736485849650,-791.12,0.00010819,2]
[348380652,1736485849660,-500.0,0.00010819,2]
[348380653,1736485849672,-488.181607,0.00010819,2]
[348380654,1736485849683,-2512.42,0.00010819,2]
[348380655,1736485849693,-1270.51,0.00010819,2]
[348380656,1736485849703,-861.19,0.00010819,2]
[348380657,1736485849713,-978.38,0.00010819,2]
[348380658,1736485849724,-560.89,0.00010819,2]
[348380659,1736485849735,-500.0,0.00010819,2]
[348380660,1736485849747,-855.48,0.00010819,2]
[348380661,1736485849758,-1540.33,0.00010819,2]
[348380662,1736485849769,-985.69,0.00010819,2]
[348380663,1736485849779,-791.97,0.00010819,2]
[348380664,1736485849790,-481.684011,0.00010819,2]
[348380665,1736485849801,-1720.38,0.00010819,2]
[348380666,1736485849811,-1238.08,0.00010819,2]
[348380667,1736485849821,-500.0,0.00010819,2]
[348380668,1736485849832,-897.12,0.00010819,2]
[348380669,1736485849843,-3237.46,0.00010819,2]
[348380670,1736485849854,-716.16,0.00010819,2]
[348380671,1736485849865,-679.51,0.00010819,2]
[348380672,1736485849876,-636.34,0.00010819,2]
[348380673,1736485849887,-500.0,0.00010819,2]
[348380674,1736485849897,-2756.52,0.00010819,2]
[348380675,1736485849907,-500.0,0.00010819,2]
[348380676,1736485849918,-509.5,0.00010819,2]
[348380677,1736485849929,-500.0,0.00010819,2]
[348380678,1736485849940,-668.18,0.00010819,2]
[348380679,1736485849950,-1363.06,0.00010819,2]
[348380680,1736485849961,-500.0,0.00010819,2]
[348380681,1736485849972,-500.0,0.00010819,2]
[348380682,1736485849982,-931.51,0.00010819,2]
[348380683,1736485849993,-916.73,0.00010819,2]
[348380684,1736485850004,-500.0,0.00010819,2]
[348380685,1736485850014,-833.46,0.00010819,2]
[348380686,1736485850024,-500.0,0.00010819,2]
[348380687,1736485850034,-648.63,0.00010819,2]
[348380688,1736485850044,-1563.25,0.00010819,2]
[348380689,1736485850056,-715.62,0.00010819,2]
[348380690,1736485850066,-500.0,0.00010819,2]
[348380691,1736485850077,-684.13,0.00010819,2]
[348380692,1736485850088,-1315.2,0.00010819,2]
[348380693,1736485850099,-1063.94,0.00010819,2]
[348380694,1736485850110,-500.0,0.00010819,2]
[348380695,1736485850120,-843.01,0.00010819,2]
[348380696,1736485850130,-500.0,0.00010819,2]
[348380697,1736485850141,-650.08,0.00010819,2]
[348380698,1736485850151,-572.46,0.00010819,2]
[348380699,1736485850162,-681.82,0.00010819,2]
[348380700,1736485850178,-447.63473289,0.00010819,2]
[348380701,1736485850193,-2208.62,0.00010819,2]
[348380702,1736485850206,-500.0,0.00010819,2]
[348380703,1736485850217,-884.01,0.00010819,2]
[348380704,1736485850230,-572.56,0.00010819,2]
[348380705,1736485850243,-570.27,0.00010819,2]
[348380706,1736485850256,-524.1,0.00010819,2]
[348380707,1736485850270,-500.0,0.00010819,2]
[348380708,1736485850284,-500.0,0.00010819,2]
[348380709,1736485850296,-500.0,0.00010819,2]
[348380710,1736485850308,-500.0,0.00010819,2]
[348380711,1736485850319,-703.29,0.00010819,2]
[348380712,1736485850330,-576.32,0.00010819,2]
[348380713,1736485850346,-500.0,0.00010819,2]
[348380714,1736485850359,-1363.99,0.00010819,2]
[348380715,1736485850373,-500.0,0.00010819,2]
[348380716,1736485850386,-500.0,0.00010819,2]
[348380717,1736485850400,-3399.4,0.00010819,2]
[348380718,1736485850413,-2731.96,0.00010819,2]
[348380719,1736485850427,-500.0,0.0001082,2]
[348380720,1736485850441,-520.91,0.0001082,2]
[348380721,1736485850454,-500.0,0.0001082,2]
[348380722,1736485850465,-519.85,0.0001082,2]
[348380723,1736485850480,-500.0,0.0001082,2]
[348380724,1736485850493,-500.0,0.0001082,2]
[348380725,1736485850504,-699.0,0.0001082,2]
[348380726,1736485850517,-500.0,0.0001082,2]
[348380727,1736485850528,-500.0,0.0001082,2]
[348380728,1736485850540,-500.0,0.0001082,2]
[348380729,1736485850553,-506.94957709,0.0001082,2]
[348380730,1736485850567,-574.69,0.0001082,2]
[348380731,1736485850579,-500.0,0.0001082,2]
[348380732,1736485850591,-500.0,0.0001082,2]
[348380733,1736485850603,-500.0,0.0001082,2]
[348380734,1736485850615,-500.0,0.0001082,2]
[348380735,1736485850627,-541.16293317,0.0001082,2]
[348380736,1736485850639,-500.0,0.0001082,2]
[348380737,1736485850654,-620.37,0.0001082,2]
[348380738,1736485850665,-500.0,0.0001082,2]
[348380739,1736485850676,-500.0,0.0001082,2]
[348380740,1736485850688,-500.0,0.0001082,2]
[348380741,1736485850699,-571.2559298,0.0001082,2]
[348380742,1736485850713,-500.0,0.0001082,2]
[348380743,1736485850726,-519.05,0.0001082,2]
[348380744,1736485850739,-500.0,0.0001082,2]
[348380745,1736485850750,-500.0,0.0001082,2]
[348380746,1736485850761,-500.0,0.0001082,2]
[348380747,1736485850773,-500.0,0.0001082,2]
[348380748,1736485850785,-500.0,0.0001082,2]
[348380749,1736485850796,-500.0,0.0001082,2]
[348380750,1736485850807,-500.0,0.0001082,2]
[348380751,1736485850820,-500.0,0.0001082,2]
[348380752,1736485850832,-500.0,0.0001082,2]
[348380753,1736485850843,-500.0,0.0001082,2]
[348380754,1736485850855,-500.0,0.0001082,2]
[348380755,1736485850867,-500.0,0.0001082,2]
[348380756,1736485850880,-377.91691026,0.0001082,2]
[348380757,1736485850892,-500.0,0.0001082,2]
[348380758,1736485850903,-512.49,0.0001082,2]
[348380759,1736485850915,-548.71,0.0001082,2]
[348380760,1736485850926,-517.44,0.0001082,2]
[348380761,1736485850938,-638.71,0.0001082,2]
[348380762,1736485850950,-747.11,0.0001082,2]
[348380763,1736485850962,-500.0,0.0001082,2]
[348380764,1736485850974,-500.0,0.0001082,2]
[348380765,1736485850986,-500.0,0.0001082,2]
[348380766,1736485850997,-500.0,0.0001082,2]
[348380767,1736485851008,-500.0,0.0001082,2]
[348380768,1736485851020,-500.0,0.0001082,2]
[348380769,1736485851031,-776.6,0.0001082,2]
[348380770,1736485851044,-620.59,0.0001082,2]
[348380771,1736485851055,-796.51,0.0001082,2]
[348380772,1736485851067,-802.9,0.0001082,2]
[348380773,1736485851080,-500.0,0.0001082,2]
[348380774,1736485851093,-500.0,0.0001082,2]
[348380775,1736485851105,-546.03,0.0001082,2]
[348380776,1736485851117,-500.0,0.0001082,2]
[348380777,1736485851129,-591.26,0.0001082,2]
[348380778,1736485851141,-500.0,0.0001082,2]
[348380779,1736485851154,-500.0,0.0001082,2]
[348380780,1736485851165,-500.0,0.0001082,2]
[348380781,1736485851177,-500.0,0.0001082,2]
[348380782,1736485851189,-737.07,0.0001082,2]
[348380783,1736485851205,-500.0,0.0001082,2]
[348380784,1736485851216,-500.0,0.0001082,2]
[348380785,1736485851228,-592.26,0.0001082,2]
[348380786,1736485851239,-730.39,0.0001082,2]
[348380787,1736485851250,-500.0,0.0001082,2]
[348380788,1736485851261,-878.76,0.0001082,2]
[348380789,1736485851275,-625.64,0.0001082,2]
[348380790,1736485851287,-542.31,0.0001082,2]
[348380791,1736485851299,-825.5,0.0001082,2]
[348380792,1736485851311,-500.0,0.0001082,2]
[348380793,1736485851322,-500.0,0.0001082,2]
[348380794,1736485851333,-500.0,0.0001082,2]
[348380795,1736485851346,-1008.98,0.0001082,2]
[348380796,1736485851360,-649.97,0.0001082,2]
[348380797,1736485851371,-965.32,0.0001082,2]
[348380798,1736485851382,-500.0,0.0001082,2]
[348380799,1736485851393,-1051.3,0.0001082,2]
[348380800,1736485851405,-500.0,0.0001082,2]
[348380801,1736485851417,-638.06,0.0001082,2]
[348380802,1736485851429,-856.2,0.0001082,2]
[348380803,1736485851441,-2492.72,0.00010821,2]
[348380804,1736485851454,-1117.6,0.00010821,2]
[348380805,1736485851466,-2716.02,0.00010821,2]
[348380806,1736485851479,-150.0,0.00010821,2]
[348380807,1736485851491,-1051.97,0.00010821,2]
[348380808,1736485851502,-942.9,0.00010821,2]
[348380809,1736485851514,-1386.35,0.00010821,2]
[348380810,1736485851526,-1345.32,0.00010821,2]
[348380811,1736485851538,-2039.72,0.00010821,2]
[348380812,1736485851550,-1211.66,0.00010821,2]
[348380813,1736485851561,-500.0,0.00010821,2]
[348380814,1736485851572,-4020.8,0.00010821,2]
[348380815,1736485851584,-500.0,0.00010821,2]
[348380816,1736485851596,-1742.2,0.00010821,2]
[348380817,1736485851609,-2381.68,0.00010821,2]
[348380818,1736485851621,-1409.32,0.00010821,2]
[348380819,1736485851632,-1787.14,0.00010821,2]
[348380820,1736485851643,-973.16,0.00010821,2]
[348380821,1736485851656,-1029.35,0.00010821,2]
[348380822,1736485851667,-1504.91,0.00010821,2]
[348380823,1736485851680,-2601.63,0.00010821,2]
[348380824,1736485851691,-1352.02,0.00010821,2]
[348380825,1736485851703,-2290.17,0.00010821,2]
[348380826,1736485851715,-962.88,0.00010821,2]
[348380827,1736485851728,-6045.19,0.00010821,2]
[348380828,1736485851739,-500.0,0.00010821,2]
[348380829,1736485851751,-150.08198068,0.00010821,2]
[348380830,1736485851763,-150.0621424,0.00010821,2]
[348380831,1736485851774,-500.0,0.00010821,2]
[348380832,1736485851786,-201.74942696,0.00010821,2]
[348380833,1736485851797,-150.0,0.00010821,2]
[348380834,1736485851809,-150.0,0.00010821,2]
[348380835,1736485851822,-500.0,0.00010821,2]
[348380836,1736485851834,-150.0,0.00010821,2]
[348380837,1736485851846,-520.0,0.00010821,2]
[348380838,1736485851859,-836.69,0.00010821,2]
[348380839,1736485851871,-150.0,0.00010821,2]
[348380840,1736485851882,-150.10456583,0.00010821,2]
[348380841,1736485851894,-150.0,0.00010821,2]
[348380842,1736485851905,-1073.22,0.00010821,2]
[348380843,1736485851917,-3000.0,0.00010821,2]
[348380844,1736485851929,-1240.83,0.00010821,2]
[348380845,1736485851941,-739.05,0.00010821,2]
[348380846,1736485851952,-500.0,0.00010821,2]
[348380847,1736485851963,-596.81,0.00010821,2]
[348380848,1736485851975,-830.3,0.00010821,2]
[348380849,1736485851986,-823.66,0.00010821,2]
[348380850,1736485851998,-1261.47,0.00010821,2]
[348380851,1736485852010,-150.0,0.00010848,2]
[348380852,1736485852023,-500.0,0.00010848,2]
[348380853,1736485852035,-905.32345659,0.00010848,2]
[348380854,1736485852046,-150.14874432,0.00010848,2]
[348380855,1736485852058,-500.0,0.00010848,2]
[348380856,1736485852070,-520.0,0.00010848,2]
[348380857,1736485852083,-150.0,0.00010848,2]
[348380858,1736485852095,-150.0,0.00010848,2]
[348380859,1736485852107,-500.0,0.00010873,2]
[348380860,1736485852119,-150.0,0.00010876,2]
[348380861,1736485852130,-500.0,0.00010876,2]
[348380862,1736485852141,-650.81202795,0.00010876,2]
[348380863,1736485852152,-520.0,0.00010876,2]
[348380864,1736485852163,-150.16179074,0.00010876,2]
[348380865,1736485852174,-150.0,0.00010876,2]
[348380866,1736485852187,-1000.0,0.00010899,2]
[348380867,1736485852198,-780.99965145,0.00010899,2]
[348380868,1736485852209,-1132.0,0.000109,2]
[348380869,1736485852220,-537048.42987219,0.000109,2]
[348380870,1736485852232,-842.3303439,0.000109,2]
[348380871,1736485852243,-4106.14195206,0.000109,2]
[348380872,1736485852254,-150.0,0.00010903,2]
[348380873,1736485852265,-500.0,0.00010903,2]
[348380874,1736485852276,-520.0,0.00010903,2]
[348380875,1736485852287,-150.0,0.00010903,2]
[348380876,1736485852298,-319.86,0.00010906,2]
[348380877,1736485852309,-150.0,0.00010916,2]
[348380878,1736485852320,-200.39905809,0.00010931,2]
[348380879,1736485852331,-500.0,0.00010931,2]
[348380880,1736485852344,-520.0,0.00010931,2]
[348380881,1736485852356,-200.36663247,0.00010931,2]
[348380882,1736485852367,-501.80289441,0.00010958,2]
[348380883,1736485852378,-520.0,0.00010958,2]
[348380884,1736485852392,-7500.0,0.00010958,2]
[348380885,1736485852406,-7500.0,0.00010958,2]
[348380886,1736485852420,-999.0,0.00010958,2]
[348380887,1736485852434,-500.0,0.00010959,2]
[348380888,1736485852446,-2000.0,0.00010959,2]
[348380889,1736485852456,-200.0,0.00010959,2]
[348380890,1736485852467,-151.0,0.00010959,2]
[348380891,1736485852478,-151.0,0.00010959,2]
[348380892,1736485852489,-151.0,0.00010959,2]
[348380893,1736485852500,-151.0,0.00010959,2]
[348380894,1736485852511,-151.0,0.00010959,2]
[348380895,1736485852522,-151.0,0.00010959,2]
[348380896,1736485852532,-151.0,0.00010959,2]
[348380897,1736485852543,-151.0,0.00010959,2]
[348380898,1736485852554,-151.0,0.00010959,2]
[348380899,1736485852564,-151.0,0.00010959,2]
[348380900,1736485852575,-151.0,0.00010959,2]
[348380901,1736485852585,-151.0,0.00010959,2]
[348380902,1736485852595,-151.0,0.00010959,2]
[348380903,1736485852606,-151.0,0.00010959,2]
[348380904,1736485852617,-151.0,0.00010959,2]
[348380905,1736485852627,-151.0,0.00010959,2]
[348380906,1736485852638,-151.0,0.00010959,2]
[348380907,1736485852648,-151.0,0.00010959,2]
[348380908,1736485852658,-151.0,0.00010959,2]
[348380909,1736485852670,-151.0,0.00010959,2]
[348380910,1736485852681,-151.0,0.00010959,2]
[348380911,1736485852692,-151.0,0.00010959,2]